Workbook

Sheet SumOfSquares
B1: Optimizing the Sum of the Squares
B2: of Two Numbers
B4: This DIGMath module lets you investigate
B5: the problem of finding two positive numbers
B6: for whom the sum of the squares
B7: is a maximum or a minimum.
A10: What is the sum S of the two numbers?
B11: (1 - 25 ) | D11: Sum S = | E11: =D12 -> 15
D12: 15
A14: The sum of the two numbers is S = x + y = | E14: =S -> 15
A15: The formula for the sum of the squares SS = | E15: x2 + y2 = x2 + (S - x)2
D16: = | E16: =TEXT(S^2,0)&" - "&TEXT(2*S,"0")&"x + 2x^2" -> 225 - 30x + 2x^2
A19: Click each item below for suggestions and investigations
C20: Item 1
C21: Item 2
C22: Item 3
A26: To access/download all the DIGMath Apps for Calculus
A27: Click this link: | C27: DIGMath for Calculus
K28: Select the value of x = | N28: =N29*dx -> 9.75
A29: Created by: Sheldon P. Gordon | N29: 130 | O29: =Calcs!G7+N29*(Calcs!G8-Calcs!G7)/100 -> 0
A30: Farmingdale State College
A31: Development of this module was supported by the | K31: The associated value for y = | O31: =S-x0 -> 5.25
A32: NSF's Division of Undergraduate Education
A33: under grants DUE-0310123 and DUE-0442160. | K33: The sum of the squares is SS = | O33: =Calcs!G14 -> 122.63
K35: The value of the derivative is y' = | P35: =Calcs!H14 -> 9

Sheet Calcs
A1: 1 Product | B1: x | C1: y | D1: y'
B2: 0 | C2: =S^2-2*S*B2+2*B2^2 -> 225 | D2: =-2*S+4*x -> -30 | F2: Point on curve
B3: =B2+dx -> 0.075 | C3: 222.76125 | D3: -29.7 | F3: =x0 -> 9.75 | G3: 0
B4: 0.15 | C4: 220.545 | D4: -29.4 | F4: =x0 -> 9.75 | G4: =S^2-2*S*F4+2*F4^2 -> 122.625
B5: 0.225 | C5: 218.35125 | D5: -29.1
B6: 0.3 | C6: 216.18 | D6: -28.8 | F6: dx = | G6: =S/200 -> 0.075
B7: 0.375 | C7: 214.03125 | D7: -28.5
B8: 0.45 | C8: 211.905 | D8: -28.2
B9: 0.525 | C9: 209.80125 | D9: -27.9 | F9: endpoint
B10: 0.6 | C10: 207.72 | D10: -27.6 | F10: =S -> 15 | G10: =S^2-2*S*F10+2*F10^2 -> 225
B11: 0.675 | C11: 205.66125 | D11: -27.3
B12: 0.75 | C12: 203.625 | D12: -27
B13: 0.825 | C13: 201.61125 | D13: -26.7 | F13: =x0 -> 9.75 | G13: 0 | H13: 0
B14: 0.9 | C14: 199.62 | D14: -26.4 | F14: =x0 -> 9.75 | G14: =LOOKUP(x0,B2:B202,C2:C202) -> 122.625 | H14: =LOOKUP(x0,B2:B202,D2:D202) -> 9
B15: 0.975 | C15: 197.65125 | D15: -26.1
B16: 1.05 | C16: 195.705 | D16: -25.8
B17: 1.125 | C17: 193.78125 | D17: -25.5
B18: 1.2 | C18: 191.88 | D18: -25.2
B19: 1.275 | C19: 190.00125 | D19: -24.9
B20: 1.35 | C20: 188.145 | D20: -24.6
B21: 1.425 | C21: 186.31125 | D21: -24.3
B22: 1.5 | C22: 184.5 | D22: -24
B23: 1.575 | C23: 182.71125 | D23: -23.7
B24: 1.65 | C24: 180.945 | D24: -23.4
B25: 1.725 | C25: 179.20125 | D25: -23.1
B26: 1.8 | C26: 177.48 | D26: -22.8
B27: 1.875 | C27: 175.78125 | D27: -22.5
B28: 1.95 | C28: 174.105 | D28: -22.2
B29: 2.025 | C29: 172.45125 | D29: -21.9
B30: 2.1 | C30: 170.82 | D30: -21.6
B31: 2.175 | C31: 169.21125 | D31: -21.3
B32: 2.25 | C32: 167.625 | D32: -21
B33: 2.325 | C33: 166.06125 | D33: -20.7
B34: 2.4 | C34: 164.52 | D34: -20.4
B35: =B34+dx -> 2.475 | C35: 163.00125 | D35: -20.1
B36: 2.55 | C36: 161.505 | D36: -19.8
B37: 2.625 | C37: 160.03125 | D37: -19.5
B38: 2.7 | C38: 158.58 | D38: -19.2
B39: 2.775 | C39: 157.15125 | D39: -18.9
B40: 2.85 | C40: 155.745 | D40: -18.6
B41: 2.925 | C41: 154.36125 | D41: -18.3
B42: 3 | C42: 153 | D42: -18
B43: 3.075 | C43: 151.66125 | D43: -17.7
B44: 3.15 | C44: 150.345 | D44: -17.4
B45: 3.225 | C45: 149.05125 | D45: -17.1
B46: 3.3 | C46: 147.78 | D46: -16.8
B47: 3.375 | C47: 146.53125 | D47: -16.5
B48: 3.45 | C48: 145.305 | D48: -16.2
B49: 3.525 | C49: 144.10125 | D49: -15.9
B50: 3.6 | C50: 142.92 | D50: -15.6
B51: 3.675 | C51: 141.76125 | D51: -15.3
B52: 3.75 | C52: 140.625 | D52: -15
B53: 3.825 | C53: 139.51125 | D53: -14.7
B54: 3.9 | C54: 138.42 | D54: -14.4
B55: 3.975 | C55: 137.35125 | D55: -14.1
B56: 4.05 | C56: 136.305 | D56: -13.8
B57: 4.125 | C57: 135.28125 | D57: -13.5
B58: 4.2 | C58: 134.28 | D58: -13.2
B59: 4.275 | C59: 133.30125 | D59: -12.9
B60: 4.35 | C60: 132.345 | D60: -12.6
B61: 4.425 | C61: 131.41125 | D61: -12.3
B62: 4.5 | C62: 130.5 | D62: -12
B63: 4.575 | C63: 129.61125 | D63: -11.7
B64: 4.65 | C64: 128.745 | D64: -11.4
B65: 4.725 | C65: 127.90125 | D65: -11.1
B66: 4.8 | C66: =S^2-2*S*B66+2*B66^2 -> 127.08 | D66: =-2*S+4*x -> -10.8
B67: =B66+dx -> 4.875 | C67: 126.28125 | D67: -10.5
B68: 4.95 | C68: 125.505 | D68: -10.2
B69: 5.025 | C69: 124.75125 | D69: -9.9
B70: 5.1 | C70: 124.02 | D70: -9.6
B71: 5.175 | C71: 123.31125 | D71: -9.3
B72: 5.25 | C72: 122.625 | D72: -9
B73: 5.325 | C73: 121.96125 | D73: -8.7
B74: 5.4 | C74: 121.32 | D74: -8.4
B75: 5.475 | C75: 120.70125 | D75: -8.1
B76: 5.55 | C76: 120.105 | D76: -7.8
B77: 5.625 | C77: 119.53125 | D77: -7.5
B78: 5.7 | C78: 118.98 | D78: -7.2
B79: 5.775 | C79: 118.45125 | D79: -6.9
B80: 5.85 | C80: 117.945 | D80: -6.6
B81: 5.925 | C81: 117.46125 | D81: -6.3
B82: 6 | C82: 117 | D82: -6
B83: 6.075 | C83: 116.56125 | D83: -5.7
B84: 6.15 | C84: 116.145 | D84: -5.4
B85: 6.225 | C85: 115.75125 | D85: -5.1
B86: 6.3 | C86: 115.38 | D86: -4.8
B87: 6.375 | C87: 115.03125 | D87: -4.5
B88: 6.45 | C88: 114.705 | D88: -4.2
B89: 6.525 | C89: 114.40125 | D89: -3.9
B90: 6.6 | C90: 114.12 | D90: -3.6
B91: 6.675 | C91: 113.86125 | D91: -3.3
B92: 6.75 | C92: 113.625 | D92: -3
B93: 6.825 | C93: 113.41125 | D93: -2.7
B94: 6.9 | C94: 113.22 | D94: -2.4
B95: 6.975 | C95: 113.05125 | D95: -2.1
B96: 7.05 | C96: 112.905 | D96: -1.8
B97: 7.125 | C97: 112.78125 | D97: -1.5
B98: 7.2 | C98: 112.68 | D98: -1.2
B99: =B98+dx -> 7.275 | C99: 112.60125 | D99: -0.9
B100: 7.35 | C100: 112.545 | D100: -0.6
B101: 7.425 | C101: 112.51125 | D101: -0.3
B102: 7.5 | C102: 112.5 | D102: 4.97379915e-14
B103: 7.575 | C103: 112.51125 | D103: 0.3
B104: 7.65 | C104: 112.545 | D104: 0.6
B105: 7.725 | C105: 112.60125 | D105: 0.9
B106: 7.8 | C106: 112.68 | D106: 1.2
B107: 7.875 | C107: 112.78125 | D107: 1.5
B108: 7.95 | C108: 112.905 | D108: 1.8
B109: 8.025 | C109: 113.05125 | D109: 2.1
B110: 8.1 | C110: 113.22 | D110: 2.4
B111: 8.175 | C111: 113.41125 | D111: 2.7
B112: 8.25 | C112: 113.625 | D112: 3
B113: 8.325 | C113: 113.86125 | D113: 3.3
B114: 8.4 | C114: 114.12 | D114: 3.6
B115: 8.475 | C115: 114.40125 | D115: 3.9
B116: 8.55 | C116: 114.705 | D116: 4.2
B117: 8.625 | C117: 115.03125 | D117: 4.5
B118: 8.7 | C118: 115.38 | D118: 4.8
B119: 8.775 | C119: 115.75125 | D119: 5.1
B120: 8.85 | C120: 116.145 | D120: 5.4
B121: 8.925 | C121: 116.56125 | D121: 5.7
B122: 9 | C122: 117 | D122: 6
B123: 9.075 | C123: 117.46125 | D123: 6.3
B124: 9.15 | C124: 117.945 | D124: 6.6
B125: 9.225 | C125: 118.45125 | D125: 6.9
B126: 9.3 | C126: 118.98 | D126: 7.2
B127: 9.375 | C127: 119.53125 | D127: 7.5
B128: 9.45 | C128: 120.105 | D128: 7.8
B129: 9.525 | C129: 120.70125 | D129: 8.1
B130: 9.6 | C130: =S^2-2*S*B130+2*B130^2 -> 121.32 | D130: =-2*S+4*x -> 8.4
B131: =B130+dx -> 9.675 | C131: 121.96125 | D131: 8.7
B132: 9.75 | C132: 122.625 | D132: 9
B133: 9.825 | C133: 123.31125 | D133: 9.3
B134: 9.9 | C134: 124.02 | D134: 9.6
B135: 9.975 | C135: 124.75125 | D135: 9.9
B136: 10.05 | C136: 125.505 | D136: 10.2
B137: 10.125 | C137: 126.28125 | D137: 10.5
B138: 10.2 | C138: 127.08 | D138: 10.8
B139: 10.275 | C139: 127.90125 | D139: 11.1
B140: 10.35 | C140: 128.745 | D140: 11.4
B141: 10.425 | C141: 129.61125 | D141: 11.7
B142: 10.5 | C142: 130.5 | D142: 12
B143: 10.575 | C143: 131.41125 | D143: 12.3
B144: 10.65 | C144: 132.345 | D144: 12.6
B145: 10.725 | C145: 133.30125 | D145: 12.9
B146: 10.8 | C146: 134.28 | D146: 13.2
B147: 10.875 | C147: 135.28125 | D147: 13.5
B148: 10.95 | C148: 136.305 | D148: 13.8
B149: 11.025 | C149: 137.35125 | D149: 14.1
B150: 11.1 | C150: 138.42 | D150: 14.4
B151: 11.175 | C151: 139.51125 | D151: 14.7
B152: 11.25 | C152: 140.625 | D152: 15
B153: 11.325 | C153: 141.76125 | D153: 15.3
B154: 11.4 | C154: 142.92 | D154: 15.6
B155: 11.475 | C155: 144.10125 | D155: 15.9
B156: 11.55 | C156: 145.305 | D156: 16.2
B157: 11.625 | C157: 146.53125 | D157: 16.5
B158: 11.7 | C158: 147.78 | D158: 16.8
B159: 11.775 | C159: 149.05125 | D159: 17.1
B160: 11.85 | C160: 150.345 | D160: 17.4
B161: 11.925 | C161: 151.66125 | D161: 17.7
B162: 12 | C162: 153 | D162: 18
B163: =B162+dx -> 12.075 | C163: 154.36125 | D163: 18.3
B164: 12.15 | C164: 155.745 | D164: 18.6
B165: 12.225 | C165: 157.15125 | D165: 18.9
B166: 12.3 | C166: 158.58 | D166: 19.2
B167: 12.375 | C167: 160.03125 | D167: 19.5
B168: 12.45 | C168: 161.505 | D168: 19.8
B169: 12.525 | C169: 163.00125 | D169: 20.1
B170: 12.6 | C170: 164.52 | D170: 20.4
B171: 12.675 | C171: 166.06125 | D171: 20.7
B172: 12.75 | C172: 167.625 | D172: 21
B173: 12.825 | C173: 169.21125 | D173: 21.3
B174: 12.9 | C174: 170.82 | D174: 21.6
B175: 12.975 | C175: 172.45125 | D175: 21.9
B176: 13.05 | C176: 174.105 | D176: 22.2
B177: 13.125 | C177: 175.78125 | D177: 22.5
B178: 13.2 | C178: 177.48 | D178: 22.8
B179: 13.275 | C179: 179.20125 | D179: 23.1
B180: 13.35 | C180: 180.945 | D180: 23.4
B181: 13.425 | C181: 182.71125 | D181: 23.7
B182: 13.5 | C182: 184.5 | D182: 24
B183: 13.575 | C183: 186.31125 | D183: 24.3
B184: 13.65 | C184: 188.145 | D184: 24.6
B185: 13.725 | C185: 190.00125 | D185: 24.9
B186: 13.8 | C186: 191.88 | D186: 25.2
B187: 13.875 | C187: 193.78125 | D187: 25.5
B188: 13.95 | C188: 195.705 | D188: 25.8
B189: 14.025 | C189: 197.65125 | D189: 26.1
B190: 14.1 | C190: 199.62 | D190: 26.4
B191: 14.175 | C191: 201.61125 | D191: 26.7
B192: 14.25 | C192: 203.625 | D192: 27
B193: 14.325 | C193: 205.66125 | D193: 27.3
B194: 14.4 | C194: =S^2-2*S*B194+2*B194^2 -> 207.72 | D194: =-2*S+4*x -> 27.6
B195: =B194+dx -> 14.475 | C195: 209.80125 | D195: 27.9
B196: 14.55 | C196: 211.905 | D196: 28.2
B197: 14.625 | C197: 214.03125 | D197: 28.5
B198: 14.7 | C198: 216.18 | D198: 28.8
B199: 14.775 | C199: 218.35125 | D199: 29.1
B200: 14.85 | C200: 220.545 | D200: 29.4
... 2 more rows
